bitfinex/quotes_ETHUSD_20260209
["timestamp","ask_amount","ask_price","bid_price","bid_amount"]
[1770616627872,0.98267079,2095.8,2095.6,0.001]
[1770616628106,0.98067079,2095.7,2095.4,0.001]
[1770616628277,0.98067079,2095.7,2095.4,0.003]
[1770616630005,1.19297571,2095.7,2095.4,0.003]
[1770616632176,4.77358103,2095.8,2095.4,0.003]
[1770616632177,0.002,2095.8,2095.4,0.003]
[1770616632378,1.19486505,2095.8,2095.4,0.003]
[1770616634282,0.002,2095.8,2095.4,0.003]
[1770616634801,0.002,2095.8,2095.4,0.97087666]
[1770616635020,0.002,2096.0,2095.6,0.96787666]
[1770616636221,0.002,2096.0,2095.8,0.97545719]
[1770616636380,0.002,2096.0,2095.7,2.16837602]
[1770616637407,0.002,2096.0,2095.8,0.92222128]
[1770616638216,0.002,2096.0,2095.6,2.11515152]
[1770616638388,0.002,2096.0,2095.6,2.115188]
[1770616638589,0.92002456,2096.0,2095.5,3.79]
[1770616638924,0.92002456,2096.0,2095.4,0.001]
[1770616639600,0.92002456,2096.0,2095.8,0.001]
[1770616642522,2.11082956,2095.9,2095.8,0.001]
[1770616647700,0.002,2096.0,2095.8,0.001]
[1770616648122,0.92002456,2096.0,2095.8,0.001]
[1770616650115,1.192805,2095.9,2095.8,0.001]
[1770616651628,2.11082956,2095.9,2095.8,0.001]
[1770616652204,2.11282956,2095.9,2095.8,0.001]
[1770616653440,0.002,2095.9,2095.8,0.001]
[1770616653605,0.002,2096.2,2095.8,0.001]
[1770616653606,1.19464189,2096.2,2095.9,0.92222128]
[1770616654238,0.002,2096.2,2095.8,0.001]
[1770616656218,0.92002456,2096.2,2095.8,0.001]
[1770616656403,1.19269118,2096.1,2095.8,0.001]
[1770616658737,1.19467911,2096.2,2095.8,0.001]
[1770616660534,1.19467911,2096.2,2095.8,0.92322128]
[1770616661037,0.002,2096.2,2095.8,0.92322128]
[1770616662233,0.002,2096.2,2095.9,0.92222128]
[1770616664745,0.002,2096.2,2095.9,1.1927946]
[1770616664916,0.002,2096.2,2096.0,0.92322128]
[1770616666836,0.002,2096.7,2096.2,0.99908846]
[1770616668340,0.002,2096.7,2096.3,0.99908846]
[1770616669914,0.95388712,2096.7,2096.0,1.00008846]
[1770616670118,0.95388712,2096.7,2096.0,2.19283202]
[1770616670435,1.19240675,2096.6,2096.0,1.00008846]
[1770616670637,1.19240675,2096.6,2096.0,2.19283102]
[1770616670824,1.19240675,2096.6,2096.1,0.99908846]
[1770616671650,1.19240675,2096.6,2096.0,1.19374256]
[1770616671651,0.95188712,2098.3,2096.8,0.99908846]
[1770616671939,0.95188712,2097.5,2096.5,0.99908846]
[1770616672144,0.95188712,2097.3,2096.3,0.99908846]
[1770616672343,0.95188712,2097.1,2096.3,0.99908846]
[1770616672518,1.1921793,2097.0,2096.3,2.19164536]
[1770616672715,1.1921793,2097.0,2096.3,0.99908846]
[1770616673246,2.14406642,2097.0,2096.2,2.19168773]
[1770616673546,0.008,2096.9,2096.3,0.99908846]
[1770616675449,2.14406642,2097.0,2096.3,0.99908846]
[1770616675624,0.008,2096.9,2096.3,0.99908846]
[1770616675952,0.008,2096.9,2096.3,2.19166169]
[1770616676247,0.008,2096.9,2096.3,0.99908846]
[1770616676544,0.95988712,2096.9,2096.1,0.99908846]
[1770616676733,0.95988712,2096.9,2096.1,2.19177671]
[1770616677049,0.96188712,2096.9,2096.5,0.001]
[1770616677423,1.19229301,2096.8,2096.5,0.001]
[1770616678324,0.95188712,2096.6,2096.3,0.001]
[1770616678631,0.008,2096.7,2096.3,0.001]
[1770616679747,0.008,2096.6,2096.3,0.001]
[1770616682041,1.1923927,2096.7,2096.3,0.001]
[1770616682242,0.008,2096.6,2096.3,0.001]
[1770616682845,0.008,2096.6,2096.3,1.00008846]
[1770616683339,0.008,2096.6,2096.3,0.001]
[1770616684349,1.20045093,2096.6,2096.3,0.001]
[1770616684545,2.15233805,2096.6,2096.3,0.001]
[1770616684855,0.008,2096.6,2096.3,0.001]
[1770616685439,1.20041327,2096.6,2096.3,0.001]
[1770616686258,0.008,2096.6,2096.3,0.001]
[1770616686557,4.77099581,2096.9,2096.3,1.00008846]
[1770616686752,0.008,2096.8,2096.3,1.00008846]
[1770616687155,4.77099581,2096.9,2096.3,1.00008846]
[1770616687459,0.008,2096.8,2096.3,1.00008846]
[1770616688638,1.19234988,2096.7,2096.3,1.00008846]
[1770616688844,1.19234988,2096.7,2096.3,0.001]
[1770616689933,1.19234988,2096.7,2096.5,0.001]
[1770616692356,1.20034988,2096.7,2096.5,0.001]
[1770616696634,0.008,2096.7,2096.5,0.001]
[1770616697372,1.19233349,2096.8,2096.5,0.001]
[1770616697576,0.008,2096.7,2096.5,0.001]
[1770616700040,0.9463057,2096.6,2096.5,0.001]
[1770616700234,0.008,2096.6,2096.5,0.001]
[1770616702156,1.20240675,2096.6,2096.5,0.001]
[1770616703744,0.002,2096.6,2096.5,0.99208546]
[1770616703944,0.002,2096.8,2096.5,0.001]
[1770616704149,0.01,2096.8,2096.5,0.001]
[1770616704973,0.01,2096.8,2096.5,0.99208546]
[1770616705345,0.002,2096.8,2096.5,0.99208546]
[1770616705874,0.01,2096.8,2096.5,0.99208546]
[1770616708884,0.008,2096.7,2096.5,0.001]
[1770616711280,0.008,2096.6,2096.5,0.001]
[1770616711989,1.19237159,2096.7,2096.5,0.001]
[1770616712190,0.008,2096.6,2096.5,0.001]
[1770616713301,2.13067729,2096.7,2096.3,0.001]
[1770616713477,0.007,2096.5,2096.3,0.001]
[1770616715705,0.002,2096.4,2096.3,0.001]
[1770616718604,0.009,2096.4,2096.3,0.001]
[1770616724912,0.002,2096.6,2096.3,0.99208546]
[1770616726708,0.002,2096.9,2096.6,0.9707428]
[1770616726910,0.99915799,2096.9,2096.3,3.334]
[1770616727218,0.99915799,2096.9,2096.3,0.001]
[1770616727710,0.99915799,2096.9,2096.5,0.001]
[1770616728106,0.002,2096.6,2096.5,0.001]
[1770616741917,0.002,2096.6,2096.5,0.9717428]
[1770616742824,0.002,2096.6,2096.5,0.001]
[1770616743728,0.002,2096.6,2096.5,0.9717428]
[1770616746131,0.002,2096.6,2096.5,0.001]
[1770616747809,0.002,2096.6,2096.3,0.001]
[1770616747810,0.99915799,2096.6,2096.3,0.001]
[1770616748706,1.19246362,2096.5,2096.3,0.001]
[1770616749136,2.18962161,2096.5,2096.3,0.001]
[1770616753446,0.002,2096.4,2096.3,0.001]
[1770616758554,0.002,2096.4,2096.3,3.616e-05]
[1770616760958,0.9917165,2096.3,2096.0,0.001]
[1770616761171,0.9917165,2096.3,2096.0,0.002]
[1770616762660,2.18434373,2096.3,2096.0,0.002]
[1770616762864,1.19262723,2096.3,2096.0,0.002]
[1770616765333,4.77218775,2096.4,2096.0,0.001]
[1770616765534,4.77218775,2096.4,2096.0,0.002]
[1770616765857,4.77218775,2096.4,2096.2,0.001]
[1770616766057,4.77218775,2096.4,2096.2,3.626e-05]
[1770616766259,0.002,2096.3,2096.2,3.626e-05]
[1770616771960,0.002,2096.3,2096.0,0.001]
[1770616772164,0.002,2096.3,2096.1,0.001]
[1770616772455,0.002,2096.3,2096.1,0.92785848]
[1770616775644,0.002,2096.3,2096.1,0.001]
[1770616776655,1.19457739,2096.3,2096.0,0.001]
[1770616776838,1.19457739,2096.3,2096.1,0.001]
[1770616777167,1.19457739,2096.3,2096.0,0.001]
[1770616778837,1.19457739,2096.3,2096.2,0.001]
[1770616779048,1.19457739,2096.3,2096.0,0.001]
[1770616779249,0.002,2096.1,2096.0,0.001]
[1770616781779,0.002,2096.1,2096.0,0.002]
[1770616783974,0.002,2096.1,2096.0,0.92885848]
[1770616784162,0.002,2096.3,2096.0,0.92885848]
[1770616785477,0.002,2096.3,2096.1,0.90564909]
[1770616785676,0.002,2096.3,2096.1,0.28452577]
[1770616785873,0.002,2096.3,2096.0,0.90564909]
[1770616787874,0.002,2096.3,2096.0,0.001]
[1770616788084,0.97225614,2096.3,2096.0,0.001]
[1770616789974,2.16488705,2096.3,2096.0,0.001]
[1770616792388,2.16488705,2096.3,2096.2,0.001]
[1770616794282,0.002,2096.3,2096.2,0.001]
[1770616794859,0.003,2099.3,2096.4,2.3741351]
[1770616795163,0.003,2099.3,2097.3,0.90464909]
[1770616795164,8.20616161,2098.4,2097.3,0.90464909]
[1770616795379,0.97025614,2098.3,2097.3,0.90464909]
[1770616795585,0.97025614,2098.1,2097.3,0.90464909]
[1770616795892,11.69419376,2098.2,2097.3,0.90464909]
[1770616796204,9.17641775,2098.0,2097.3,0.90464909]
[1770616796483,0.04775093,2097.6,2097.1,0.90464909]
[1770616796983,0.04775093,2097.6,2096.8,3.334]
[1770616796984,0.04775093,2097.6,2097.2,2.0967147]
[1770616797186,0.04775093,2097.9,2097.3,0.90464909]
[1770616797364,2.20955404,2098.2,2097.2,1.19206561]
[1770616797365,2.51777601,2097.8,2097.4,0.90464909]
[1770616797565,2.51777601,2098.1,2097.4,0.90464909]
[1770616797785,2.51777601,2098.1,2097.1,12.97462967]
[1770616797786,0.04775093,2097.5,2097.1,1.19211253]
[1770616797991,0.04775093,2097.5,2097.1,1.19211171]
[1770616798286,2.20951179,2098.2,2097.2,0.90464909]
[1770616798482,0.97025614,2098.1,2097.2,0.90464909]
[1770616799586,1.19161105,2098.0,2097.3,1.19200877]
[1770616800080,2.16186719,2098.0,2097.3,1.19200877]
[1770616800385,0.97025614,2097.9,2097.3,1.19200877]
[1770616800585,0.97025614,2097.8,2097.1,1.1920953]
[1770616800882,9.17641775,2097.7,2097.0,1.19214909]
[1770616801095,3.48803215,2097.7,2096.9,5.67354604]
[1770616801298,2.51777601,2097.6,2097.1,1.19211454]
[1770616801466,2.51777601,2097.6,2097.1,1.19208916]
[1770616801877,0.97025614,2097.7,2097.1,1.19208916]
[1770616802078,2.51777601,2097.6,2097.1,2.09673825]
[1770616802363,2.51777601,2097.8,2097.1,2.09673825]
[1770616802761,2.51777601,2097.7,2097.1,2.09673825]
[1770616802965,2.51777601,2097.8,2097.1,2.09673825]
[1770616803491,2.51777601,2097.7,2097.1,2.09673825]
[1770616803672,2.51777601,2097.8,2097.1,2.09673825]
[1770616804193,2.51777601,2097.7,2097.1,2.09673825]
[1770616804485,2.51777601,2097.8,2097.1,2.09673825]
[1770616804684,4.67976983,2097.8,2097.1,0.90464909]
[1770616804884,0.97025614,2097.6,2096.9,2.09688401]
[1770616805059,0.97025614,2097.6,2096.7,2.09697646]
[1770616805384,0.97025614,2097.4,2096.7,2.09698988]
[1770616805588,0.97025614,2097.4,2096.7,0.90464909]
[1770616805889,0.97025614,2097.4,2096.5,5.43010862]
[1770616806058,3.48803215,2097.3,2096.6,1.19239836]
[1770616806385,0.97025614,2097.3,2096.6,1.19239836]
[1770616807062,0.97025614,2097.3,2096.5,5.43006998]
[1770616807266,2.51777601,2097.2,2096.6,1.19239909]
[1770616807491,3.48803215,2097.2,2096.6,1.19239909]
[1770616807712,3.48803215,2097.1,2096.5,3.333]
[1770616807864,0.97025614,2097.0,2096.3,0.001]
[1770616808192,0.97025614,2096.9,2096.3,0.001]
[1770616808388,2.51777601,2096.9,2096.4,1.19248941]
[1770616808562,2.51777601,2096.8,2096.3,2.09819128]
[1770616808890,0.97025614,2097.0,2096.3,2.09818623]
[1770616809785,0.97025614,2096.9,2096.3,0.001]
[1770616810292,3.48803215,2096.8,2096.3,0.001]
[1770616810490,0.97025614,2096.8,2096.3,0.001]
[1770616812287,2.51777601,2096.7,2096.3,0.001]
[1770616812980,1.1922802,2096.9,2095.4,0.001]
[1770616812981,0.04775093,2095.9,2095.4,0.001]
[1770616813189,0.04775093,2095.9,2094.7,0.001]
[1770616813190,0.97025614,2095.4,2094.7,0.001]
[1770616813489,0.2489,2095.1,2094.7,1.19448349]
[1770616813678,0.2489,2095.1,2094.8,0.90464909]
[1770616813879,0.00376919,2095.1,2094.8,0.90464909]
[1770616814276,0.00376919,2095.1,2094.9,2.09802347]
[1770616814476,0.00376919,2095.1,2094.9,0.90464909]
[1770616814870,4.86284301,2095.7,2094.9,0.90464909]
[1770616816595,4.86284301,2095.7,2095.0,0.96313333]
[1770616816895,4.86284301,2095.7,2095.2,1.01088426]
[1770616817068,4.86284301,2095.7,2095.2,0.96313333]
[1770616817468,4.86284301,2095.7,2094.8,0.9870266]
[1770616817777,4.86284301,2095.7,2095.1,0.001]
[1770616818178,0.43788343,2096.0,2095.1,0.9880266]
[1770616818691,0.43788343,2096.0,2095.2,2.18023011]
[1770616819494,0.43788343,2096.0,2095.3,0.9870266]
[1770616820685,0.43788343,2096.0,2095.4,1.19308962]
[1770616820998,0.43788343,2096.0,2095.4,2.18011622]
[1770616821575,1.63065349,2096.0,2095.3,1.19312381]
[1770616821799,1.63065349,2096.0,2095.3,1.19314136]
[1770616821986,2.5864599,2096.0,2095.1,0.001]
[1770616822186,0.95580641,2095.9,2094.9,0.001]
[1770616822404,0.95580641,2095.6,2094.6,0.001]
[1770616822583,0.95580641,2095.1,2094.5,0.001]
[1770616822784,0.95580641,2095.1,2093.9,1.19393193]
[1770616823184,0.95580641,2095.1,2093.9,2.18095853]
[1770616823383,0.95580641,2095.1,2093.9,1.19393193]
[1770616825300,0.95580641,2094.9,2093.7,1.19405836]
[1770616825481,0.95580641,2094.9,2093.5,1.19416479]
[1770616825682,0.95580641,2094.9,2093.6,1.19411164]
[1770616826082,0.95580641,2094.9,2093.5,1.19412894]
[1770616826407,0.95580641,2094.9,2093.6,1.19411125]
[1770616827283,0.95580641,2094.7,2093.5,2.18116214]
[1770616828287,0.95580641,2094.7,2093.4,7.44543355]
[1770616828884,0.95580641,2094.7,2093.4,8.63963716]
[1770616829183,0.95580641,2094.5,2093.4,8.63965905]
[1770616829385,0.95580641,2094.5,2093.4,7.44543355]
[1770616830009,0.95437419,2094.5,2093.4,7.44543355]
[1770616830388,0.95437419,2094.5,2093.4,4.11143355]
[1770616830788,0.95437419,2094.5,2093.4,5.3056594]
[1770616831006,0.95437419,2094.5,2093.4,4.11143355]
[1770616831308,2.14946569,2094.4,2094.2,0.001]
[1770616831612,0.95580641,2094.3,2093.4,4.11143355]
[1770616831786,0.95580641,2094.3,2094.0,0.001]
[1770616831988,0.95580641,2094.3,2093.4,4.11143355]
[1770616833187,0.95580641,2094.1,2093.4,4.11143355]
[1770616835893,0.95580641,2093.9,2093.4,4.11143355]
[1770616836088,0.95580641,2093.7,2093.1,0.001]
[1770616836289,0.95580641,2093.5,2092.2,1.19488717]
[1770616836616,0.95580641,2093.5,2092.2,2.18193187]
[1770616836816,0.95580641,2093.5,2092.3,1.1948491]
[1770616837113,4.29180641,2093.8,2092.2,0.04775093]
[1770616837302,1.43540326,2093.9,2092.6,0.9870266]
[1770616837502,1.19388729,2094.0,2093.3,1.19427879]
[1770616837707,3.337,2094.1,2093.4,1.19421853]
[1770616837920,1.19365928,2094.4,2093.4,0.9870266]
[1770616838217,1.19363889,2094.5,2093.4,0.9870266]
[1770616838392,2.1494453,2094.5,2093.4,0.9870266]
[1770616838703,0.95580641,2094.4,2093.4,0.9870266]
[1770616839093,0.95580641,2094.4,2093.0,0.9870266]
[1770616840022,1.19371627,2094.3,2093.2,2.0]
[1770616840225,1.19371627,2094.3,2093.3,0.9870266]
[1770616841021,0.95580641,2094.2,2093.1,2.18142724]
[1770616841397,0.95580641,2094.2,2093.1,1.19440064]
[1770616841800,0.95580641,2094.2,2093.2,0.9870266]
[1770616842007,2.14963669,2094.1,2093.2,1.19430552]
[1770616842198,1.19383028,2094.1,2093.1,1.19437947]
[1770616842411,0.95580641,2094.0,2093.1,1.19437947]
[1770616842612,0.95580641,2094.0,2093.2,1.1943415]
[1770616842919,2.14963669,2094.1,2093.2,1.19434018]
[1770616843822,2.14963669,2094.1,2093.2,2.18136678]
[1770616844122,2.14975072,2093.9,2092.9,5.97150033]
[1770616844526,2.14975072,2093.9,2093.3,0.001]
[1770616845396,0.002,2094.0,2093.3,0.93665176]
[1770616845610,1.1958946,2094.0,2093.3,0.93665176]
[1770616846123,0.002,2094.0,2093.4,1.19422948]
[1770616846428,0.90401188,2094.0,2093.3,0.001]
[1770616848020,1.19394431,2093.9,2093.3,0.001]
[1770616848726,0.002,2094.0,2093.3,0.93665176]
[1770616848902,0.002,2094.0,2093.4,0.93565176]
[1770616849305,1.19589174,2094.0,2093.3,3.791]
[1770616849726,0.002,2094.0,2093.3,0.93665176]
[1770616849929,1.19589353,2094.0,2093.3,0.93665176]
[1770616850119,0.002,2094.0,2093.3,2.1309018]
[1770616851728,0.002,2094.0,2093.3,0.001]
[1770616851926,0.002,2094.0,2093.3,1.19528482]
[1770616852235,0.002,2094.0,2093.3,0.001]
[1770616852609,0.90401188,2094.0,2093.0,0.001]
[1770616852807,0.90201188,2093.8,2093.0,0.001]
[1770616853707,9.91988997,2093.6,2092.2,0.001]
[1770616853913,0.90201188,2093.5,2092.3,1.19484684]
[1770616854136,0.90201188,2093.5,2092.2,4.78065495]
[1770616854137,0.90201188,2093.3,2092.2,4.78065495]
[1770616854545,0.90201188,2093.3,2092.2,0.001]
[1770616854755,0.90201188,2092.7,2091.9,2.33001715]
[1770616855055,0.90201188,2092.7,2091.7,1.19519129]
[1770616855236,0.90201188,2092.7,2091.5,1.19527241]
[1770616855814,0.90201188,2092.7,2091.4,0.93565176]
[1770616856112,9.87213904,2093.2,2091.7,2.13085183]
[1770616856113,0.90201188,2093.1,2091.7,2.13085183]
[1770616856911,0.90201188,2092.9,2091.4,3.338]
[1770616857138,0.90201188,2092.7,2091.5,1.19528001]
[1770616857339,0.90201188,2092.7,2091.5,1.1953004]
[1770616857649,0.90201188,2092.7,2091.3,0.93565176]
[1770616857940,0.90201188,2092.4,2090.9,0.93565176]
[1770616858145,0.90201188,2092.2,2091.0,1.19560019]
[1770616858316,0.90201188,2092.2,2092.1,0.001]
[1770616858509,0.90201188,2092.2,2090.9,2.13126866]
[1770616859019,1.19485733,2092.3,2091.0,0.98340269]
[1770616859227,1.19485733,2092.3,2091.0,0.93565176]
[1770616859545,0.90201188,2092.2,2091.0,0.93565176]
[1770616859754,1.19485733,2092.3,2091.0,0.93565176]
[1770616859950,1.19485733,2092.3,2091.0,0.98340269]
[1770616860157,2.09686921,2092.3,2091.1,1.19554301]
[1770616860309,1.19485733,2092.3,2091.1,0.98340269]
[1770616861606,1.19485733,2092.3,2091.1,0.93565176]
[1770616861937,0.90201188,2092.2,2091.0,1.19556335]
[1770616862118,1.19497155,2092.1,2090.9,4.78242604]
[1770616862321,2.09698343,2092.1,2090.9,4.78242604]
[1770616862520,0.90201188,2092.0,2090.9,4.78242604]
[1770616862716,1.19497155,2092.1,2090.9,5.7180778]
[1770616862932,2.09698343,2092.1,2090.9,5.7180778]
[1770616863326,0.90201188,2092.0,2090.9,1.19565737]
[1770616864114,1.1950858,2091.9,2090.6,5.7188791]
[1770616864347,0.90201188,2091.8,2090.7,1.19577175]
[1770616865631,0.90201188,2091.8,2090.6,2.13144361]
[1770616865853,0.90201188,2091.8,2090.6,1.19579185]
[1770616866027,0.90201188,2091.7,2090.4,1.19591083]
[1770616866224,0.90201188,2091.7,2090.2,1.44120219]
[1770616866225,0.90201188,2091.5,2090.2,1.44120219]
[1770616866537,0.90201188,2091.5,2090.2,2.63725659]
[1770616866846,0.90201188,2091.5,2090.3,0.93565176]
[1770616867141,1.19525721,2091.6,2090.2,1.44120219]
[1770616867142,0.90201188,2091.3,2090.2,1.44120219]
[1770616867463,0.90201188,2091.1,2090.2,1.44120219]
[1770616867928,0.94976281,2091.1,2089.7,1.19631425]
[1770616868136,0.94976281,2091.1,2089.5,4.78574874]
[1770616868333,0.90201188,2090.7,2089.3,4.78627092]
[1770616868643,0.90201188,2090.7,2089.3,5.72192268]
[1770616869025,1.24335112,2091.0,2089.2,3.34]
[1770616869026,0.90201188,2090.5,2089.2,3.34]
[1770616869326,0.90201188,2090.3,2089.2,1.19662065]
[1770616870242,1.19605779,2090.2,2089.9,0.001]
[1770616870441,1.19605779,2090.2,2089.0,4.78652115]
[1770616870645,1.19605779,2090.2,2089.6,0.001]
[1770616870829,2.09786479,2090.6,2089.6,0.001]
[1770616871031,0.90201188,2090.5,2089.6,0.001]
[1770616871339,0.94976281,2090.5,2089.6,0.001]
[1770616872328,0.90201188,2090.3,2088.8,1.1978241]
[1770616872536,0.90201188,2089.5,2088.8,0.001]
[1770616872922,0.90201188,2089.5,2088.5,2.63819888]
[1770616873124,0.90201188,2089.5,2088.5,2.63822725]
[1770616873363,0.90201188,2089.5,2088.5,1.44120219]
[1770616873556,0.90201188,2089.5,2088.5,2.63822917]
[1770616873758,4.24401188,2089.8,2088.8,1.19685244]
[1770616873959,4.24401188,2089.8,2088.9,1.1967895]
[1770616874161,0.90201188,2090.1,2088.9,1.1967895]
[1770616874465,0.90201188,2090.1,2088.8,4.78729455]
[1770616874466,1.19617224,2090.0,2088.8,0.04775093]
[1770616874621,2.09816748,2090.1,2088.8,0.04775093]
[1770616875128,2.09816748,2090.1,2088.7,5.72286033]
[1770616875469,0.95796073,2089.9,2088.6,1.19697404]
[1770616876190,0.95796073,2089.6,2088.5,2.63823302]
[1770616876548,2.15441921,2089.5,2088.5,1.44120219]
[1770616876868,1.19645848,2089.5,2088.5,2.63822385]
[1770616877367,1.19645848,2089.5,2088.5,3.60350778]
[1770616877564,2.19189378,2089.8,2088.5,3.60350778]
[1770616879572,4.7847578,2090.0,2088.6,0.96528393]
[1770616879772,4.7847578,2090.0,2088.7,1.01303486]
[1770616880253,1.19617224,2090.0,2088.7,1.01303486]
[1770616880454,1.19600057,2090.3,2088.7,1.01303486]
[1770616880656,2.19160763,2090.3,2088.9,0.96528393]
[1770616880863,1.04335799,2090.2,2088.8,1.19685944]
[1770616881984,0.99560706,2090.2,2088.8,1.19685944]
[1770616882201,0.99560706,2090.2,2088.9,0.96528393]
[1770616882370,1.19600057,2090.3,2089.0,0.04775093]
[1770616882687,4.5379853,2090.4,2089.3,0.96528393]
[1770616883018,1.19577175,2090.7,2089.3,1.01303486]
[1770616883188,1.19573535,2090.8,2089.3,1.01303486]
[1770616883504,4.78222891,2091.1,2089.6,1.01303486]
[1770616883750,0.99560706,2091.0,2089.6,1.01303486]
[1770616883913,0.99560706,2091.0,2089.6,0.96528393]
[1770616884680,1.19565528,2091.0,2089.8,0.96528393]
[1770616885706,1.19557041,2091.1,2089.8,0.96528393]
[1770616885900,4.53952662,2091.2,2089.8,0.96528393]
[1770616886105,3.344,2091.2,2090.0,1.01303486]
[1770616886306,0.99560706,2091.5,2090.0,0.96528393]
[1770616886695,2.19097858,2091.4,2090.1,2.16139894]
[1770616887094,1.19535262,2091.5,2090.2,0.96528393]
[1770616887578,4.78084797,2091.7,2090.3,1.01303486]
[1770616887808,5.77645503,2091.7,2090.3,0.96528393]
[1770616888238,5.77645503,2091.7,2090.4,0.04775093]
[1770616888527,1.19520007,2091.7,2090.4,1.01303486]
[1770616888737,1.1970858,2091.9,2090.5,2.16117008]
[1770616889488,1.1970858,2091.9,2090.6,0.96528393]
[1770616889732,0.99560706,2091.8,2090.6,0.96528393]
[1770616890092,0.99560706,2091.8,2090.5,1.19588615]
[1770616890718,2.19078524,2091.8,2090.5,0.96528393]
[1770616890908,1.19712628,2091.9,2090.6,1.01303486]
[1770616891109,0.002,2091.9,2090.8,0.96528393]
[1770616891651,0.002,2091.9,2091.0,0.96528393]
[1770616892607,0.002,2091.9,2091.2,0.96528393]
[1770616892812,0.002,2091.9,2091.2,1.01303486]
[1770616893041,0.002,2091.9,2091.2,0.96528393]
[1770616893222,0.002,2091.9,2091.1,1.19554301]
[1770616893436,0.99760706,2091.9,2090.9,1.19563094]
[1770616893748,0.99760706,2091.9,2091.0,1.19559898]
[1770616893948,0.99760706,2091.9,2090.6,0.96528393]
[1770616894115,0.99760706,2091.9,2090.8,1.19567988]
[1770616894315,0.99760706,2091.9,2090.9,1.19564802]
[1770616894542,0.99760706,2091.9,2090.5,1.19584776]
[1770616894743,0.99760706,2091.9,2090.3,0.96528393]
[1770616894744,0.99560706,2091.5,2090.1,1.19611501]
[1770616895036,0.99560706,2091.5,2090.2,0.96528393]
[1770616897138,1.19537152,2091.4,2090.3,1.19600057]
[1770616897439,2.19097858,2091.4,2090.3,1.19600057]
[1770616897623,1.19537152,2091.4,2090.3,2.20903543]
[1770616898037,1.19730002,2091.6,2090.4,0.96528393]
[1770616898754,0.002,2091.6,2090.6,1.01303486]
[1770616899052,0.002,2091.6,2090.7,1.19577175]
[1770616899428,0.99760706,2091.6,2090.6,1.19578763]
[1770616899638,0.99760706,2091.6,2090.6,1.1958127]
[1770616901140,1.19531436,2091.5,2090.4,1.19594336]
[1770616901663,2.19092142,2091.5,2090.4,1.19594336]
[1770616901955,0.99560706,2091.4,2090.4,1.19594336]
[1770616902345,1.19730068,2091.6,2090.6,0.04775093]
[1770616902528,1.19730068,2091.6,2090.5,0.96528393]
[1770616903153,0.002,2091.6,2090.6,1.24357987]
[1770616903859,0.002,2091.6,2090.7,0.96528393]
[1770616905360,0.002,2091.6,2090.9,1.00602785]
[1770616905670,0.002,2091.8,2091.2,1.00602785]
[1770616905960,0.002,2092.1,2091.2,1.00602785]
[1770616906258,0.002,2092.1,2091.3,1.00602785]
[1770616906433,0.002,2093.0,2092.0,1.00602785]
[1770616906633,0.002,2093.0,2092.0,4.30027692]
[1770616906858,0.002,2093.0,2092.1,1.00602785]
[1770616907233,0.002,2093.0,2091.9,1.1950858]
[1770616907435,0.97483802,2093.0,2091.9,1.1950858]
[1770616908338,0.002,2092.8,2091.9,1.1950858]
[1770616909345,0.002,2092.8,2091.8,4.78034322]
[1770616909756,0.002,2092.8,2091.8,5.73862014]
[1770616910069,0.002,2092.8,2091.9,0.04775093]
[1770616910236,0.002,2092.8,2091.9,1.00602785]
[1770616911375,0.002,2092.8,2092.3,1.19485733]
[1770616911935,0.002,2093.0,2092.3,2.15313425]
[1770616912239,0.002,2093.0,2092.3,1.19485733]
[1770616913467,0.002,2093.0,2092.1,1.24272248]
[1770616914164,0.002,2093.0,2092.4,0.04775093]
[1770616914371,0.002,2093.0,2092.4,1.00602785]
[1770616915351,0.002,2093.0,2092.5,0.04775093]
[1770616915675,0.002,2093.0,2092.6,1.19468603]
[1770616916192,0.002,2093.6,2092.8,0.04775093]
[1770616917176,0.002,2093.6,2092.8,4.34602785]
[1770616917548,0.002,2093.6,2092.9,1.19451478]
[1770616917750,0.002,2093.6,2093.1,0.04775093]
[1770616918043,0.002,2093.8,2093.2,0.04775093]
[1770616918249,0.00112897,2093.9,2093.2,1.00602785]
[1770616918481,0.00112897,2093.9,2093.3,0.04775093]
[1770616919469,0.00112897,2093.9,2093.4,1.19422948]
[1770616919866,0.002,2094.0,2093.6,0.04775093]
[1770616920494,0.97483802,2094.7,2093.4,1.19422948]
[1770616920651,0.97283802,2094.6,2093.4,1.19422948]
[1770616920852,0.002,2093.6,2093.4,1.19422948]
[1770616921080,0.97283802,2094.2,2093.2,1.19433898]
[1770616921447,1.19383028,2094.1,2092.9,4.77791675]
[1770616921655,0.97283802,2094.0,2092.9,4.77791675]
[1770616921884,0.97283802,2094.0,2092.7,1.19461408]
[1770616922056,0.97283802,2094.0,2092.6,1.19463656]
[1770616922252,0.97283802,2094.0,2092.5,4.78512064]
[1770616922253,1.02058895,2094.0,2092.5,4.78512064]
[1770616922447,0.97283802,2093.6,2092.5,4.78512064]
[1770616922662,0.04775093,2093.4,2092.5,3.53599138]
[1770616922865,0.04775093,2093.4,2092.0,0.001]
[1770616922866,0.97283802,2093.3,2092.0,0.001]
[1770616923154,1.02058895,2093.1,2092.0,0.001]
[1770616923658,0.97283802,2092.7,2092.0,0.001]
[1770616925555,1.19445771,2093.0,2092.0,0.001]
[1770616925857,0.97283802,2092.9,2092.0,0.001]
[1770616926257,1.19445771,2093.0,2092.0,0.001]
[1770616926579,1.19443453,2093.1,2092.1,0.04775093]
[1770616927258,1.19438043,2093.2,2092.1,0.04775093]
[1770616927481,1.19438043,2093.2,2092.0,0.95927692]
[1770616927689,5.75005244,2093.3,2092.1,1.19497155]
[1770616928572,5.75005244,2093.3,2092.0,0.001]
[1770616928573,0.97283802,2093.3,2092.0,0.001]
[1770616928776,0.97283802,2093.3,2092.0,1.19602585]
[1770616929358,0.97283802,2093.3,2092.0,0.001]
[1770616929556,0.97283802,2093.3,2092.0,1.19602505]
[1770616929851,0.97283802,2093.1,2092.0,0.001]
[1770616930052,1.19434358,2093.2,2092.0,0.95927692]
[1770616930488,4.87823202,2093.9,2092.1,1.00602785]
[1770616930489,4.77651049,2093.6,2092.1,1.00602785]
[1770616930790,5.74934851,2093.6,2092.1,1.00602785]
[1770616931681,5.74934851,2093.6,2092.2,1.19491444]
[1770616932083,0.97283802,2093.5,2092.2,1.19491444]